[Event "106th British-ch 2019"]
[Site "Torquay"]
[Date "2019.08.02"]
[Round "7.16"]
[White "Claridge-Hansen, William"]
[Black "Crickmore, Neil Eg"]
[Result "1/2-1/2"]
[ECO "A37"]
[WhiteElo "2297"]
[BlackElo "2187"]
[Annotator "NA"]
[PlyCount "58"]
[EventDate "2019.07.27"]
[EventType "swiss"]
[EventCountry "GBR"]
[SourceTitle "playchess.com"]
[Source "ChessBase"]
[SourceQuality "1"]
[TimeControl "40/5400+30:1800+30"]

1. c4 {[%emt 0:00:00]} c5 {[%emt 0:00:30]} 2. g3 {[%emt 0:00:00]} Nc6 {[%emt 0:00:15]} 3. Bg2 {[%emt 0:00:15]} g6 {[%emt 0:00:08]} 4. Nc3 {[%emt 0:00:09]} Bg7 {[%emt 0:00:10]} 5. Nf3 {[%emt 0:00:32]} e6 {[%emt 0:00:23]} 6. d4 {[%emt 0:00:32]} cxd4 {[%emt 0:05:00]} 7. Nb5 {[%emt 0:00:11]} d5 {[%emt 0:00:20]} 8. cxd5 {[%emt 0:00:40]} Qa5+ {[%emt 0:01:01]} 9. Nd2 {[%emt 0:00:50]} Qxb5 {[%emt 0:07:45]} 10. dxc6 {[%emt 0:01:26]} Ne7 {[%emt 0:02:57]} 11. a4 {[%emt 0:01:09]} Qb6 {[%emt 0:04:57]} 12. Nc4 {[%emt 0:01:51]} Qb4+ {[%emt 0:01:54]} 13. Bd2 {[%emt 0:00:14]} Qxc4 {[%emt 0:00:10]} 14. cxb7 {[%emt 0:00:20]} Bxb7 {[%emt 0:01:06]} 15. Bxb7 {[%emt 0:00:08]} Rb8 {[%emt 0:00:28]} 16. Rc1 {[%emt 0:01:26]} Qa2 {[%emt 0:01:35]} 17. Ba6 {[%emt 0:03:01]} O-O {[%emt 0:00:19]} 18. b4 {[%emt 0:02:18]} Qa3 {[%emt 0:00:09]} 19. O-O {[%emt 0:07:31]} Nd5 {[%emt 0:10:40]} 20. Ra1 {[%emt 0:07:11]} Qb2 {[%emt 0:01:05]} 21. Rb1 {[%emt 0:02:15]} Qa2 {[%emt 0:11:20]} 22. Bd3 {[%emt 0:10:59]} Nc3 {[%emt 0:16:00]} 23. Bxc3 {[%emt 0:01:33]} dxc3 {[%emt 0:00:21]} 24. Qb3 {[%emt 0:07:53]} Qxb3 {[%emt 0:04:22]} 25. Rxb3 {[%emt 0:03:12]} Rfc8 {[%emt 0:01:59]} 26. b5 {[%emt 0:08:29]} f5 {[%emt 0:01:18]} 27. Rc1 {[%emt 0:07:01]} Kf7 {[%emt 0:00:55]} 28. Kg2 {[%emt 0:01:14]} Ke7 {[%emt 0:00:25]} 29. h3 {[%emt 0:03:37]} Kd6 {[%emt 0:02:23]} 1/2-1/2

[Event "106th British-ch 2019"]
[Site "Torquay"]
[Date "2019.08.02"]
[Round "7.17"]
[White "Stoyanov, Viktor"]
[Black "Zapolskis, Antanas"]
[Result "1/2-1/2"]
[ECO "C01"]
[WhiteElo "2198"]
[BlackElo "2290"]
[Annotator "NA"]
[PlyCount "137"]
[EventDate "2019.07.27"]
[EventType "swiss"]
[EventCountry "GBR"]
[SourceTitle "playchess.com"]
[Source "ChessBase"]
[SourceQuality "1"]
[TimeControl "40/5400+30:1800+30"]

1. d4 {[%emt 0:00:00]} b5 {[%emt 0:00:00]} 2. e4 {[%emt 0:00:00]} a6 {[%emt 0:00:00]} 3. Bd3 {[%emt 0:00:00]} e6 {[%emt 0:00:01]} 4. Nf3 {[%emt 0:00:00]} c5 {[%emt 0:00:18]} 5. c3 {[%emt 0:00:02]} d6 {[%emt 0:01:00]} 6. O-O {[%emt 0:00:19]} Nf6 {[%emt 0:00:18]} 7. Re1 {[%emt 0:00:54]} Be7 {[%emt 0:00:25]} 8. a4 {[%emt 0:01:06]} cxd4 {[%emt 0:06:59]} 9. cxd4 {[%emt 0:01:35]} b4 {[%emt 0:05:08]} 10. a5 {[%emt 0:01:14]} O-O {[%emt 0:02:06]} 11. Nbd2 {[%emt 0:09:17]} Bb7 {[%emt 0:04:29]} 12. Nb3 {[%emt 0:09:40]} Nbd7 {[%emt 0:05:47]} 13. Bd2 {[%emt 0:07:06]} d5 {[%emt 0:13:37]} 14. e5 {[%emt 0:00:15]} Ne4 {[%emt 0:00:07]} 15. Be3 {[%emt 0:00:47]} f6 {[%emt 0:01:44]} 16. exf6 {[%emt 0:03:15]} gxf6 {[%emt 0:00:44]} 17. Rc1 {[%emt 0:22:03]} Kh8 {[%emt 0:00:48]} 18. Qc2 {[%emt 0:11:07]} Rc8 {[%emt 0:01:38]} 19. Qe2 {[%emt 0:00:11]} Nb8 {[%emt 0:01:09]} 20. Bf4 {[%emt 0:01:46]} Bd6 {[%emt 0:01:12]} 21. Rxc8 {[%emt 0:00:35]} Bxc8 {[%emt 0:00:30]} 22. Bxd6 {[%emt 0:01:00]} Nxd6 {[%emt 0:01:01]} 23. Rc1 {[%emt 0:06:01]} Re8 {[%emt 0:05:18]} 24. Qd2 {[%emt 0:01:24]} e5 {[%emt 0:01:10]} 25. dxe5 {[%emt 0:00:21]} fxe5 {[%emt 0:00:09]} 26. Bf1 {[%emt 0:02:08]} Nc4 {[%emt 0:05:59]} 27. Qxb4 {[%emt 0:03:45]} Nc6 {[%emt 0:00:28]} 28. Qc5 {[%emt 0:01:44]} Bb7 {[%emt 0:06:09]} 29. Bxc4 {[%emt 0:02:00]} dxc4 {[%emt 0:00:10]} 30. Qxc4 {[%emt 0:00:07]} Nxa5 {[%emt 0:00:18]} 31. Nxa5 {[%emt 0:00:08]} Bxf3 {[%emt 0:00:11]} 32. gxf3 {[%emt 0:04:26]} Qxa5 {[%emt 0:03:07]} 33. Qc6 {[%emt 0:04:09]} Qd8 {[%emt 0:00:39]} 34. Kh1 {[%emt 0:00:20]} Rg8 {[%emt 0:01:41]} 35. Rg1 {[%emt 0:00:11]} Rxg1+ {[%emt 0:00:30]} 36. Kxg1 {[%emt 0:00:30]} a5 {[%emt 0:00:37]} 37. Qc3 {[%emt 0:00:13]} Qd5 {[%emt 0:03:30]} 38. f4 {[%emt 0:01:42]} Qd1+ {[%emt 0:01:13]} 39. Kg2 {[%emt 0:00:04]} Qg4+ {[%emt 0:00:18]} 40. Qg3 {[%emt 0:00:06]} Qe2 {[%emt 0:00:29]} 41. fxe5 {[%emt 0:30:42]} Qxb2 {[%emt 0:30:09]} 42. Qf3 {[%emt 0:01:05]} Qb4 {[%emt 0:03:07]} 43. e6 {[%emt 0:01:45]} Qe7 {[%emt 0:00:30]} 44. Qa8+ {[%emt 0:00:30]} Kg7 {[%emt 0:00:30]} 45. Qxa5 {[%emt 0:00:30]} Qxe6 {[%emt 0:00:53]} 46. Qg5+ {[%emt 0:00:00]} Kf7 {[%emt 0:01:03]} 47. Kg3 {[%emt 0:00:17]} Qe1 {[%emt 0:00:14]} 48. Qf5+ {[%emt 0:00:11]} Kg7 {[%emt 0:00:15]} 49. Kg2 {[%emt 0:00:04]} Qa1 {[%emt 0:01:14]} 50. h4 {[%emt 0:00:11]} Qa8+ {[%emt 0:01:40]} 51. Kh3 {[%emt 0:01:06]} Qc6 {[%emt 0:01:51]} 52. Qe5+ {[%emt 0:01:32]} Kf7 {[%emt 0:00:49]} 53. Kg3 {[%emt 0:00:24]} Qh1 {[%emt 0:02:49]} 54. Qf5+ {[%emt 0:00:41]} Kg7 {[%emt 0:02:28]} 55. Qg4+ {[%emt 0:00:08]} Kh8 {[%emt 0:00:10]} 56. Qf3 {[%emt 0:00:15]} Qg1+ {[%emt 0:01:12]} 57. Kh3 {[%emt 0:00:10]} Qf1+ {[%emt 0:00:20]} 58. Kh2 {[%emt 0:00:05]} Kg7 {[%emt 0:01:12]} 59. Qg2+ {[%emt 0:00:10]} Qxg2+ {[%emt 0:00:08]} 60. Kxg2 {[%emt 0:00:03]} Kf6 {[%emt 0:00:10]} 61. Kh3 {[%emt 0:04:25]} h5 {[%emt 0:02:16]} 62. Kg2 {[%emt 0:00:06]} Ke5 {[%emt 0:00:49]} 63. Kg3 {[%emt 0:00:12]} Ke4 {[%emt 0:00:11]} 64. f4 {[%emt 0:00:09]} Kd5 {[%emt 0:01:17]} 65. Kf3 {[%emt 0:01:21]} Kd4 {[%emt 0:00:10]} 66. f5 {[%emt 0:00:28]} Ke5 {[%emt 0:00:07]} 67. f6 {[%emt 0:00:04]} Kxf6 {[%emt 0:00:09]} 68. Kf4 {[%emt 0:00:01]} Kg6 {[%emt 0:00:54]} 69. Ke5 {[%emt 0:00:07]} 1/2-1/2

[Event "106th British-ch 2019"]
[Site "Torquay"]
[Date "2019.08.02"]
[Round "7.18"]
[White "Brewer, Callum D"]
[Black "Merriman, John"]
[Result "1-0"]
[ECO "C03"]
[WhiteElo "2086"]
[BlackElo "2226"]
[Annotator "NA"]
[PlyCount "57"]
[EventDate "2019.07.27"]
[EventType "swiss"]
[EventCountry "GBR"]
[SourceTitle "playchess.com"]
[Source "ChessBase"]
[SourceQuality "1"]
[TimeControl "40/5400+30:1800+30"]

1. e4 {[%emt 0:00:00]} e6 {[%emt 0:00:00]} 2. d4 {[%emt 0:00:00]} d5 {[%emt 0:00:00]} 3. Nd2 {[%emt 0:00:00]} Be7 {[%emt 0:00:09]} 4. e5 {[%emt 0:00:00]} c5 {[%emt 0:00:11]} 5. c3 {[%emt 0:00:00]} Nc6 {[%emt 0:00:06]} 6. Ndf3 {[%emt 0:00:16]} cxd4 {[%emt 0:14:31]} 7. cxd4 {[%emt 0:00:22]} Bb4+ {[%emt 0:04:46]} 8. Bd2 {[%emt 0:01:48]} Bxd2+ {[%emt 0:00:37]} 9. Qxd2 {[%emt 0:00:08]} Bd7 {[%emt 0:01:41]} 10. Bd3 {[%emt 0:03:06]} Nge7 {[%emt 0:01:29]} 11. Ne2 {[%emt 0:00:39]} O-O {[%emt 0:01:42]} 12. Ng5 {[%emt 0:10:09]} h6 {[%emt 0:19:43]} 13. Nh7 {[%emt 0:05:45]} Re8 {[%emt 0:00:56]} 14. Nf6+ {[%emt 0:01:26]} gxf6 {[%emt 0:01:59]} 15. Qxh6 {[%emt 0:00:26]} Nf5 {[%emt 0:04:49]} 16. Bxf5 {[%emt 0:01:27]} exf5 {[%emt 0:00:14]} 17. exf6 {[%emt 0:21:31]} Rxe2+ {[%emt 0:00:12]} 18. Kxe2 {[%emt 0:00:17]} Nxd4+ {[%emt 0:07:41]} 19. Kd1 {[%emt 0:01:43]} Ne6 {[%emt 0:04:17]} 20. Re1 {[%emt 0:00:51]} Qf8 {[%emt 0:03:01]} 21. Qh4 {[%emt 0:04:57]} d4 {[%emt 0:16:26]} 22. Re5 {[%emt 0:10:21]} Rc8 {[%emt 0:05:08]} 23. Rxf5 {[%emt 0:20:53]} Ba4+ {[%emt 0:03:10]} 24. b3 {[%emt 0:01:28]} Qb4 {[%emt 0:04:17]} 25. Qg3+ {[%emt 0:06:32]} Kf8 {[%emt 0:00:07]} 26. Rh5 {[%emt 0:00:27]} Ke8 {[%emt 0:00:14]} 27. Rh8+ {[%emt 0:01:19]} Nf8 {[%emt 0:01:39]} 28. Qe5+ {[%emt 0:00:33]} Kd7 {[%emt 0:00:19]} 29. Qd5+ {[%emt 0:03:26]} 1-0

[Event "106th British-ch 2019"]
[Site "Torquay"]
[Date "2019.08.02"]
[Round "7.19"]
[White "Ogunshola, Olugbemiga (Ben)"]
[Black "Modi, Shyam Jagdish"]
[Result "1-0"]
[ECO "A24"]
[WhiteElo "2172"]
[BlackElo "2098"]
[Annotator "NA"]
[PlyCount "85"]
[EventDate "2019.07.27"]
[EventType "swiss"]
[EventCountry "GBR"]
[SourceTitle "playchess.com"]
[Source "ChessBase"]
[SourceQuality "1"]
[TimeControl "40/5400+30:1800+30"]

1. c4 {[%emt 0:42:05]} g6 {[%emt 0:00:10]} 2. g3 {[%emt 0:00:17]} Bg7 {[%emt 0:00:15]} 3. Bg2 {[%emt 0:00:02]} Nf6 {[%emt 0:00:14]} 4. Nf3 {[%emt 0:00:04]} O-O {[%emt 0:00:19]} 5. Nc3 {[%emt 0:00:03]} d6 {[%emt 0:00:12]} 6. O-O {[%emt 0:00:06]} e5 {[%emt 0:00:27]} 7. d3 {[%emt 0:00:13]} h6 {[%emt 0:01:07]} 8. Rb1 {[%emt 0:01:41]} a5 {[%emt 0:00:12]} 9. a3 {[%emt 0:04:25]} Re8 {[%emt 0:02:00]} 10. e4 {[%emt 0:04:35]} Nc6 {[%emt 0:17:29]} 11. Nd5 {[%emt 0:05:56]} Be6 {[%emt 0:17:09]} 12. Bd2 {[%emt 0:04:58]} Kh7 {[%emt 0:04:17]} 13. Nh4 Nd4 {[%emt 0:17:23]} 14. Ne3 c6 {[%emt 0:18:12]} 15. f3 d5 {[%emt 0:07:44]} 16. cxd5 cxd5 {[%emt 0:05:31]} 17. Qe1 dxe4 {[%emt 0:05:06]} 18. dxe4 a4 {[%emt 0:12:52]} 19. Kh1 Rc8 {[%emt 0:01:00]} 20. Bc3 Qb6 {[%emt 0:06:21]} 21. f4 {[%emt 0:02:36]} exf4 {[%emt 0:00:16]} 22. gxf4 {[%emt 0:00:37]} Bc4 {[%emt 0:01:34]} 23. Nxc4 {[%emt 0:03:46]} Rxc4 {[%emt 0:00:03]} 24. e5 {[%emt 0:06:31]} Nf5 {[%emt 0:03:28]} 25. Nxf5 {[%emt 0:12:43]} gxf5 {[%emt 0:00:03]} 26. Qe2 {[%emt 0:00:32]} Rc7 {[%emt 0:01:45]} 27. Qc2 {[%emt 0:00:55]} Ng4 {[%emt 0:02:49]} 28. Qxf5+ {[%emt 0:01:26]} Qg6 {[%emt 0:00:02]} 29. Qxg6+ {[%emt 0:01:00]} fxg6 {[%emt 0:00:15]} 30. Rbe1 {[%emt 0:00:28]} h5 {[%emt 0:00:47]} 31. Bh3 Nh6 {[%emt 0:02:01]} 32. Re4 b5 {[%emt 0:01:37]} 33. Rd1 Nf5 {[%emt 0:02:29]} 34. Bxf5 {[%emt 0:00:29]} gxf5 {[%emt 0:00:02]} 35. Red4 {[%emt 0:00:33]} Ree7 {[%emt 0:02:36]} 36. Kg2 {[%emt 0:00:37]} Bh6 {[%emt 0:00:47]} 37. Kf3 {[%emt 0:00:03]} Kg6 {[%emt 0:01:06]} 38. Rd6+ {[%emt 0:01:36]} Kh7 {[%emt 0:00:24]} 39. Rf6 {[%emt 0:01:29]} Rf7 {[%emt 0:01:00]} 40. Rxf7+ {[%emt 0:04:08]} Rxf7 {[%emt 0:00:08]} 41. e6 {[%emt 0:01:07]} Re7 {[%emt 0:00:15]} 42. Rd7 {[%emt 0:02:31]} Bf8 {[%emt 0:00:38]} 43. Bb4 {[%emt 0:00:33]} 1-0

[Event "106th British-ch 2019"]
[Site "Torquay"]
[Date "2019.08.02"]
[Round "7.20"]
[White "Hand, Freddie"]
[Black "Player, Edmund C"]
[Result "1-0"]
[ECO "D20"]
[WhiteElo "2142"]
[BlackElo "2202"]
[Annotator "NA"]
[PlyCount "71"]
[EventDate "2019.07.27"]
[EventType "swiss"]
[EventCountry "GBR"]
[SourceTitle "playchess.com"]
[Source "ChessBase"]
[SourceQuality "1"]
[TimeControl "40/5400+30:1800+30"]

1. d4 {[%emt 0:00:00]} d5 {[%emt 0:00:00]} 2. c4 {[%emt 0:00:00]} dxc4 {[%emt 0:00:00]} 3. e4 {[%emt 0:00:00]} Nf6 {[%emt 0:00:00]} 4. e5 {[%emt 0:00:00]} Nd5 {[%emt 0:00:00]} 5. Bxc4 {[%emt 0:00:00]} Nb6 {[%emt 0:00:00]} 6. Bd3 {[%emt 0:00:00]} Nc6 {[%emt 0:00:15]} 7. Be3 {[%emt 0:00:00]} g6 {[%emt 0:00:21]} 8. Nc3 {[%emt 0:00:30]} Nb4 {[%emt 0:01:31]} 9. Be4 {[%emt 0:00:12]} N4d5 {[%emt 0:00:58]} 10. Nf3 {[%emt 0:04:14]} c6 {[%emt 0:08:47]} 11. O-O {[%emt 0:41:25]} Bg7 {[%emt 0:11:37]} 12. Qc1 {[%emt 0:12:52]} h6 {[%emt 0:05:11]} 13. Nxd5 {[%emt 0:13:20]} Nxd5 {[%emt 0:24:47]} 14. Ne1 {[%emt 0:03:13]} Be6 {[%emt 0:11:17]} 15. Nd3 {[%emt 0:02:50]} Nxe3 {[%emt 0:02:14]} 16. Qxe3 {[%emt 0:00:40]} Bc4 {[%emt 0:09:14]} 17. Rfc1 {[%emt 0:12:31]} Bxd3 {[%emt 0:00:34]} 18. Qxd3 {[%emt 0:00:13]} O-O {[%emt 0:00:26]} 19. Rc4 {[%emt 0:03:33]} e6 {[%emt 0:01:27]} 20. f4 {[%emt 0:02:11]} Qb6 {[%emt 0:02:52]} 21. Qc3 {[%emt 0:00:53]} Rad8 {[%emt 0:01:10]} 22. Rd1 {[%emt 0:00:24]} Rd7 {[%emt 0:00:45]} 23. Rd3 {[%emt 0:01:08]} Rfd8 {[%emt 0:01:27]} 24. Kh1 {[%emt 0:00:24]} Bf8 {[%emt 0:00:45]} 25. g4 {[%emt 0:01:03]} Qa6 26. f5 {[%emt 0:01:26]} c5 {[%emt 0:13:05]} 27. fxg6 Rxd4 {[%emt 0:01:37]} 28. gxf7+ {[%emt 0:00:00]} Kg7 {[%emt 0:01:03]} 29. b3 {[%emt 0:00:53]} Qxa2 {[%emt 0:01:14]} 30. Rcxd4 {[%emt 0:00:18]} cxd4 {[%emt 0:00:44]} 31. Qe1 {[%emt 0:00:19]} Be7 {[%emt 0:00:46]} 32. Qf1 {[%emt 0:00:35]} Qb2 {[%emt 0:00:40]} 33. Rf3 {[%emt 0:00:21]} Kf8 {[%emt 0:00:35]} 34. Rf6 {[%emt 0:00:48]} Rc8 {[%emt 0:00:57]} 35. Rg6 {[%emt 0:00:19]} Bf6 {[%emt 0:00:40]} 36. Rg8+ {[%emt 0:00:24]} 1-0

[Event "106th British-ch 2019"]
[Site "Torquay"]
[Date "2019.08.02"]
[Round "7.21"]
[White "Jones, Steven A"]
[Black "Ledger, Dave J"]
[Result "1/2-1/2"]
[ECO "C88"]
[WhiteElo "2117"]
[BlackElo "2168"]
[Annotator "NA"]
[PlyCount "109"]
[EventDate "2019.07.27"]
[EventType "swiss"]
[EventCountry "GBR"]
[SourceTitle "playchess.com"]
[Source "ChessBase"]
[SourceQuality "1"]
[TimeControl "40/5400+30:1800+30"]

1. e4 {[%emt 0:00:00]} e5 {[%emt 0:00:00]} 2. Nf3 {[%emt 0:00:24]} Nc6 {[%emt 0:00:00]} 3. Bb5 {[%emt 0:00:43]} a6 {[%emt 0:00:00]} 4. Ba4 {[%emt 0:00:42]} Nf6 {[%emt 0:00:08]} 5. O-O {[%emt 0:00:42]} Be7 {[%emt 0:02:57]} 6. Re1 {[%emt 0:00:23]} b5 {[%emt 0:00:09]} 7. Bb3 {[%emt 0:00:04]} O-O {[%emt 0:01:06]} 8. a4 {[%emt 0:02:13]} b4 {[%emt 0:01:34]} 9. d3 {[%emt 0:02:24]} d6 {[%emt 0:01:27]} 10. a5 {[%emt 0:02:21]} h6 {[%emt 0:06:42]} 11. Nbd2 {[%emt 0:04:54]} Re8 {[%emt 0:05:21]} 12. Nc4 {[%emt 0:05:15]} Bf8 {[%emt 0:04:31]} 13. Bd2 {[%emt 0:06:22]} Rb8 {[%emt 0:02:39]} 14. h3 {[%emt 0:04:34]} Bd7 {[%emt 0:03:55]} 15. Ne3 {[%emt 0:22:21]} g6 {[%emt 0:16:24]} 16. Qc1 {[%emt 0:03:13]} Kg7 {[%emt 0:12:31]} 17. Nd5 {[%emt 0:15:22]} Ng8 {[%emt 0:00:29]} 18. Ra4 {[%emt 0:00:23]} Be6 {[%emt 0:03:42]} 19. Bc4 {[%emt 0:02:24]} Bxd5 {[%emt 0:04:03]} 20. Bxd5 {[%emt 0:07:03]} Qd7 {[%emt 0:02:16]} 21. Bxc6 {[%emt 0:01:39]} Qxc6 {[%emt 0:00:04]} 22. Rxb4 {[%emt 0:00:07]} f5 {[%emt 0:01:09]} 23. Rxb8 {[%emt 0:01:28]} Rxb8 {[%emt 0:00:06]} 24. exf5 {[%emt 0:00:50]} gxf5 {[%emt 0:00:07]} 25. Bc3 {[%emt 0:00:50]} Kh7 {[%emt 0:01:05]} 26. Qd1 {[%emt 0:00:31]} Bg7 {[%emt 0:00:43]} 27. Nh4 {[%emt 0:00:23]} Rf8 {[%emt 0:00:30]} 28. Qh5 {[%emt 0:01:18]} Ne7 {[%emt 0:00:46]} 29. f4 {[%emt 0:05:39]} e4 {[%emt 0:01:44]} 30. Bxg7 {[%emt 0:00:21]} Kxg7 {[%emt 0:00:07]} 31. dxe4 {[%emt 0:00:22]} fxe4 {[%emt 0:00:13]} 32. Qg4+ {[%emt 0:02:03]} Kh7 {[%emt 0:01:18]} 33. Qe6 {[%emt 0:00:17]} Qc5+ {[%emt 0:00:52]} 34. Kh1 {[%emt 0:00:50]} d5 {[%emt 0:01:02]} 35. c3 {[%emt 0:00:38]} Rxf4 {[%emt 0:01:54]} 36. b4 {[%emt 0:00:45]} Qf2 {[%emt 0:01:53]} 37. Qxe7+ {[%emt 0:01:18]} Rf7 {[%emt 0:00:05]} 38. Rxe4 {[%emt 0:00:08]} Rxe7 {[%emt 0:00:42]} 39. Rxe7+ {[%emt 0:00:04]} Kg8 {[%emt 0:00:04]} 40. Nf3 {[%emt 0:00:12]} Qf1+ {[%emt 0:00:55]} 41. Kh2 {[%emt 0:31:31]} Qc4 {[%emt 0:30:24]} 42. Re6 {[%emt 0:00:56]} Qxc3 {[%emt 0:04:14]} 43. Rxh6 {[%emt 0:01:14]} Qxb4 {[%emt 0:01:16]} 44. Rxa6 {[%emt 0:01:00]} d4 45. Ra8+ {[%emt 0:03:16]} Kg7 {[%emt 0:00:58]} 46. a6 {[%emt 0:00:00]} Qd6+ {[%emt 0:09:47]} 47. Kh1 {[%emt 0:00:00]} c5 {[%emt 0:00:00]} 48. Rc8 {[%emt 0:00:00]} Qb6 {[%emt 0:00:00]} 49. Ne5 {[%emt 0:00:00]} Qxa6 {[%emt 0:00:00]} 50. Rxc5 {[%emt 0:00:00]} Qf1+ {[%emt 0:00:00]} 51. Kh2 {[%emt 0:00:00]} Qf4+ {[%emt 0:00:00]} 52. Kh1 {[%emt 0:00:00]} Qf1+ {[%emt 0:00:00]} 53. Kh2 {[%emt 0:00:00]} Qf4+ {[%emt 0:00:00]} 54. Kg1 {[%emt 0:00:00]} Qe3+ {[%emt 0:00:00]} 55. Kh2 {[%emt 0:01:17]} 1/2-1/2

[Event "106th British-ch 2019"]
[Site "Torquay"]
[Date "2019.08.02"]
[Round "7.22"]
[White "Rocco, Federico"]
[Black "Yoon, Jacob D"]
[Result "1-0"]
[ECO "B54"]
[WhiteElo "2157"]
[BlackElo "1963"]
[Annotator "NA"]
[PlyCount "128"]
[EventDate "2019.07.27"]
[EventType "swiss"]
[EventCountry "GBR"]
[SourceTitle "playchess.com"]
[Source "ChessBase"]
[SourceQuality "1"]
[TimeControl "40/5400+30:1800+30"]

1. e4 {[%emt 0:00:00]} c5 {[%emt 0:00:00]} 2. Nf3 {[%emt 0:00:00]} a6 {[%emt 0:00:00]} 3. c4 {[%emt 0:00:00]} e6 {[%emt 0:00:04]} 4. Nc3 {[%emt 0:00:13]} Nc6 {[%emt 0:00:10]} 5. d4 {[%emt 0:00:12]} cxd4 {[%emt 0:00:05]} 6. Nxd4 {[%emt 0:00:04]} Qc7 {[%emt 0:01:04]} 7. Be3 {[%emt 0:00:07]} Nf6 {[%emt 0:00:44]} 8. Be2 {[%emt 0:00:10]} d6 {[%emt 0:00:35]} 9. Rc1 {[%emt 0:00:32]} Be7 {[%emt 0:00:35]} 10. O-O {[%emt 0:01:12]} O-O {[%emt 0:00:11]} 11. f3 {[%emt 0:00:29]} b6 {[%emt 0:02:00]} 12. Nd5 {[%emt 0:02:37]} exd5 {[%emt 0:03:30]} 13. cxd5 {[%emt 0:00:11]} b5 {[%emt 0:01:08]} 14. Nxc6 {[%emt 0:00:11]} Qd7 {[%emt 0:00:18]} 15. Bb6 {[%emt 0:01:07]} Ne8 {[%emt 0:00:16]} 16. Nxe7+ {[%emt 0:00:18]} Qxe7 {[%emt 0:00:05]} 17. Bd4 {[%emt 0:00:38]} f5 {[%emt 0:00:41]} 18. Bd3 {[%emt 0:00:26]} fxe4 {[%emt 0:00:28]} 19. Bxe4 {[%emt 0:00:44]} Bf5 {[%emt 0:01:41]} 20. Qd3 {[%emt 0:00:18]} Qg5 {[%emt 0:01:38]} 21. Bc3 {[%emt 0:05:43]} h6 {[%emt 0:05:07]} 22. Rfe1 {[%emt 0:02:43]} Bxe4 {[%emt 0:02:28]} 23. fxe4 {[%emt 0:00:08]} Nf6 {[%emt 0:00:17]} 24. Bb4 {[%emt 0:01:19]} Rad8 {[%emt 0:05:12]} 25. e5 {[%emt 0:02:45]} Ng4 {[%emt 0:01:12]} 26. Qg3 {[%emt 0:12:46]} Nxe5 {[%emt 0:02:36]} 27. Qxg5 {[%emt 0:03:56]} hxg5 {[%emt 0:00:06]} 28. Bxd6 {[%emt 0:00:49]} Nf3+ {[%emt 0:00:05]} 29. gxf3 {[%emt 0:00:03]} Rxd6 {[%emt 0:00:04]} 30. Re5 {[%emt 0:00:22]} Rxf3 {[%emt 0:00:45]} 31. Rxg5 {[%emt 0:00:38]} Rd3 {[%emt 0:00:09]} 32. Rc7 {[%emt 0:03:21]} R6xd5 {[%emt 0:02:27]} 33. Rcxg7+ {[%emt 0:00:36]} Kf8 {[%emt 0:00:10]} 34. Rxd5 {[%emt 0:00:58]} Rxd5 {[%emt 0:00:05]} 35. Rg2 {[%emt 0:00:10]} Rd3 {[%emt 0:03:24]} 36. h4 {[%emt 0:01:56]} Rh3 {[%emt 0:00:57]} 37. Rg4 {[%emt 0:00:14]} Rd3 {[%emt 0:00:28]} 38. Kh2 {[%emt 0:00:25]} Kf7 {[%emt 0:00:51]} 39. Kg1 {[%emt 0:12:17]} Rd2 {[%emt 0:01:20]} 40. Rg2 {[%emt 0:00:12]} Rd1+ {[%emt 0:01:06]} 41. Kf2 {[%emt 0:30:16]} Rh1 {[%emt 0:30:04]} 42. Kg3 {[%emt 0:03:03]} Kg6 {[%emt 0:00:34]} 43. Kg4 {[%emt 0:02:12]} Kh6 {[%emt 0:02:24]} 44. Kf5 {[%emt 0:01:51]} Kh5 {[%emt 0:09:10]} 45. Ke5 {[%emt 0:04:08]} Rxh4 {[%emt 0:01:15]} 46. Kd5 {[%emt 0:00:07]} Rc4 {[%emt 0:06:27]} 47. b3 {[%emt 0:00:27]} Rc1 {[%emt 0:01:03]} 48. Kd4 {[%emt 0:00:43]} Rc6 {[%emt 0:02:38]} 49. Kd3 {[%emt 0:00:17]} Kh6 {[%emt 0:01:38]} 50. Kd4 {[%emt 0:03:10]} Rc1 {[%emt 0:01:28]} 51. Re2 {[%emt 0:03:45]} a5 {[%emt 0:00:11]} 52. Re6+ {[%emt 0:02:04]} Kg5 {[%emt 0:00:01]} 53. Re5+ {[%emt 0:00:12]} Kf6 {[%emt 0:00:03]} 54. Rxb5 {[%emt 0:00:07]} Ke6 {[%emt 0:00:05]} 55. Rxa5 {[%emt 0:00:04]} Kd6 {[%emt 0:00:02]} 56. Ra6+ {[%emt 0:00:06]} Kc7 {[%emt 0:00:04]} 57. b4 {[%emt 0:00:06]} Kb7 {[%emt 0:00:02]} 58. Ra5 {[%emt 0:00:09]} Rc8 {[%emt 0:00:04]} 59. a4 {[%emt 0:00:06]} Rc1 {[%emt 0:00:03]} 60. Rg5 {[%emt 0:00:22]} Ra1 {[%emt 0:00:08]} 61. a5 {[%emt 0:00:05]} Ka6 {[%emt 0:00:07]} 62. Rg6+ {[%emt 0:00:14]} Kb5 {[%emt 0:00:17]} 63. Rb6+ {[%emt 0:00:13]} Ka4 {[%emt 0:00:01]} 64. a6 {[%emt 0:00:07]} Kb3 {[%emt 0:00:00]} 1-0